Cogmind - Beta 16 @@@ ROGUE MODE // 2025.12.18 @ 21:43:21 Player: Btuck Result: Destroyed by D-53 Grenadier with Mini Grenade Launcher Performance ------------- Evolutions (0) 0 Regions Visited (2) 400 Robots Destroyed (18) 90 Value Destroyed (366) 366 Prototype IDs (0) 0 Alien Tech Used (0) 0 Bonus (0) 0 TOTAL SCORE: 856 Bonus ------- None Cogmind --------- Core Integrity 0/250 Matter 294/300 Energy 100/100 System Corruption 0% Temperature Cool (0) Movement Core (200) Ox3 Location -10/Mines Parts ------- > --- POWER (1) -------- (None) > --- PROPULSION (2) --- (None) > --- UTILITY (2) ------ Medium Storage Unit Seismic Detector > --- WEAPON (2) ------- (None) > --- INVENTORY (10) --- Light Ion Engine Aluminum Leg Aluminum Leg Heat Sink Terrain Scanner Improved Terrain Scanner Light Assault Rifle Light Assault Rifle Mining Claw Peak State ------------ > --- POWER ------------ Light Nuclear Core > --- PROPULSION ------- Aluminum Leg Aluminum Leg > --- UTILITY ---------- Medium Storage Unit Seismic Detector > --- WEAPON ----------- Light Assault Rifle > --- INVENTORY -------- Light Ion Engine Aluminum Leg Aluminum Leg Heat Sink Terrain Scanner Improved Terrain Scanner Assault Rifle Light Assault Rifle Light Assault Rifle Mining Claw [Rating: 9] Favorites ----------- Power Ion Engine Engine Ion Engine Power Core Light Nuclear Core Propulsion Aluminum Leg Treads Light Treads Leg Aluminum Leg Utility Seismic Detector Device Seismic Detector Storage Small Storage Unit Weapon Light Assault Rifle Energy Gun Medium Laser Ballistic Gun Light Assault Rifle Build | -11 -10 -10 ------- Run | Yrd Mat Min Slots Evolved . | . . . Power . | . . . Propulsion . | . . . Utility . | . . . Weapon . | . . . Parts Attached 18 | 7 8 3 Power 5 | 1 2 2 Engine 4 | 1 2 1 Core 1 | . . 1 Reactor . | . . . Propulsion 4 | 2 2 . Treads 2 | 2 . . Leg 2 | . 2 . Wheel . | . . . Hover . | . . . Flight . | . . . Utility 3 | 2 1 . Device 1 | 1 . . Storage 2 | 1 1 . Processor . | . . . Hackware . | . . . Protection . | . . . Artifact . | . . . Weapon 6 | 2 3 1 Energy Gun 1 | 1 . . Energy Cannon . | . . . Ballistic Gun 5 | 1 3 1 Ballistic Cannon . | . . . Launcher . | . . . Special Weapon . | . . . Impact Weapon . | . . . Slashing Weapon . | . . . Piercing Weapon . | . . . Special Melee Weapon . | . . . Unidentified Prototypes . | . . . Parts Lost 7 | . 1 6 Power 2 | . 1 1 Propulsion 2 | . . 2 Utility . | . . . Weapon 3 | . . 3 Highest Loss Streak 5 | . 1 5 To Critical Strikes 1 | . . 1 Average Backups 7 | 2 7 10 Power . | . . 1 Propulsion 1 | 1 1 2 Utility 2 | . 2 3 Weapon 2 | . 3 4 Tool/Special . | . . . Unused Backups 9 | . 1 8 Power 2 | . 1 1 Propulsion 2 | . . 2 Utility 3 | . . 3 Weapon 2 | . . 2 Tool/Special . | . . . Average Slot Usage (%) 97 | . 99 86 Engine 12 | . 13 3 Core 1 | . . 11 Treads 11 | . 13 . Leg 16 | . 14 27 Device 14 | . 14 14 Storage 14 | . 14 14 Ballistic Gun 25 | . 26 16 Peak Build Rating 9 | 7 8 9 Average Rating 7 | 5 7 8 On Entrance 5 | . 7 8 Avg Prop Armor Cover (%) . | . . . Naked Turns . | . . . Heaviest Build 18 | 14 18 17 Greatest Support 40 | 40 40 20 Greatest Overweight (x) 1 | 1 1 . Average Overweight (x) . | . . . Largest Inventory Capacity 10 | 8 10 10 Average Capacity 8 | 7 8 10 Most Carried 10 | 4 10 10 Average Carried 7 | 2 7 9 Final Capacity 10 | 8 10 10 Final Carried 10 | 4 10 9 Class Distribution -------------------- 76% | Mutant 23% | Scavenger-Mutant Dominant Class ---------------- Mutant | -10/Materials Mutant | -10/Mines Resources | -11 -10 -10 ----------- Run | Yrd Mat Min Matter Collected 532 | 280 245 7 Remotely . | . . . Salvage Created 792 | 173 619 . Parts 41 | 12 29 . Haulers Intercepted 1 | . 1 . Recyclers Shooed 1 | . 1 . Parts Field Recycled . | . . . Retrieved Matter . | . . . Parts Self-Destructed . | . . . Prevented . | . . . Parts Restored . | . . . Kills | -11 -10 -10 ------- Run | Yrd Mat Min Combat Hostiles Destroyed 10 | . 10 . Guns 10 | . 10 . Classes Destroyed 5 | 2 3 . Tunneler 4 | 4 . . Hauler 1 | . 1 . Recycler 3 | 1 2 . Swarmer 2 | . 2 . Grunt 8 | . 8 . Best Kill Streak 5 | 5 3 . Combat Bots Only 2 | . 2 . Max Kills in Single Turn 1 | 1 1 . Gunslinging . | . . . Exploded . | . . . Melee . | . . . Uniques/NPCs Destroyed . | . . . Combat | -11 -10 -10 -------- Run | Yrd Mat Min Hostile Shots Fired 87 | . 75 12 Missed 14 | . 14 . Hits 73 | . 61 12 Projectile 73 | . 61 12 AOE 10 | . . 10 Critical Strikes 2 | . 1 1 Damage Taken 1099 | . 698 401 Core 266 | . 158 108 Absorbed by Shields . | . . . Core Remaining (%) 100 | 100 . . Volleys Fired 85 | 10 71 4 Largest 2 | 2 2 1 Hottest 70 | 70 40 20 Shots Fired 166 | 20 142 4 Gun 166 | 20 142 4 Cannon . | . . . Launcher . | . . . Special . | . . . Kinetic 156 | 10 142 4 Thermal 10 | 10 . . Explosive . | . . . Electromagnetic . | . . . Robot Hit Streak 11 | 11 11 4 Robot Miss Streak 4 | 1 4 . Penetration Max . | . . . Secondary Targets . | . . . Shots Hit Robots 103 | 13 86 4 Core Hits 48 | 6 39 3 Critical Kills . | . . . Critical Parts Destroyed 1 | . 1 . Critical Strikes 2 | 1 1 . Burn 1 | 1 . . Destroy 1 | . 1 . Melee Attacks . | . . . Impact . | . . . Slashing . | . . . Piercing . | . . . Sneak Attacks . | . . . Combat Hostiles . | . . . Follow-up Attacks . | . . . Damage Inflicted 866 | 132 693 41 Guns 866 | 132 693 41 Cannons . | . . . Explosions . | . . . Melee . | . . . Ramming . | . . . Kinetic 780 | 46 693 41 Thermal 86 | 86 . . Explosive . | . . . Electromagnetic . | . . . Impact . | . . . Slashing . | . . . Piercing . | . . . Highest Corruption . | . . . Average Corruption . | . . . Corruption Purged . | . . . Corruption Blocked . | . . . Overload Shots . | . . . Overflow Damage . | . . . Projectiles . | . . . Explosions . | . . . Melee . | . . . Knockbacks . | . . . Impact . | . . . Kinetic . | . . . Secondary . | . . . Self-Inflicted Damage . | . . . Shots . | . . . Rammed . | . . . Targets Rammed . | . . . Kicked . | . . . Crushed . | . . . Highest Temperature 90 | 90 27 2 Average Temperature 18 | 38 10 2 Received Heat Transfer 393 | . 378 15 Siege Activations . | . . . Martial Activations . | . . . Shielding Activations . | . . . Robots Disrupted . | . . . Combat Hostiles . | . . . Robots Corrupted . | . . . Combat Hostiles . | . . . Parts Fried . | . . . Impact Corruptions . | . . . Robots Melted . | . . . Combat Hostiles . | . . . Parts Melted . | . . . Heat Transferred 333 | 333 . . Parts Sabotaged . | . . . Parts Stolen . | . . . Parts Stripped . | . . . Power Chain Reactions . | . . . Alert | -11 -10 -10 ------- Run | Yrd Mat Min Maximum Alert Level . | . . . Low Security (%) 100 | 100 100 100 Level 1 . | . . . Level 2 . | . . . Level 3 . | . . . Level 4 . | . . . Level 5 . | . . . High Security . | . . . Max Security . | . . . Peak Influence 66 | 20 66 18 Initial 18 | . . 18 Average 12 | 2 16 1 Influence Increases 307 | 25 282 . Destroy 0b10 Robot/C 200 | . 200 . Destroy 0b10 Robot/NC 40 | 25 15 . Destroy Leader 32 | . 32 . Successful Hack 5 | . 5 . Lose Combat Pursuer 30 | . 30 . Influence Decreases 307 | 25 235 47 Entered New Map 29 | . . 29 Time Decay 258 | 25 225 8 Lost Part 20 | . 10 10 Squads Dispatched 2 | . 2 . Investigation 2 | . 2 . Extermination . | . . . Reinforcement . | . . . Assault . | . . . Garrison . | . . . Intercept . | . . . Searches Triggered . | . . . Construction Impeded . | . . . Haulers Reinforced . | . . . Active Scanning Responses . | . . . Cargo Convoy Interrupts . | . . . Stealth | -11 -10 -10 --------- Run | Yrd Mat Min Distress Signals 3 | . 3 . Communications Jammed . | . . . Distress Signals . | . . . Times Spotted 23 | . 19 4 Peak Tracking Total 3 | . 3 2 Tactical Retreats 1 | . 1 . Traps | -11 -10 -10 ------- Run | Yrd Mat Min Traps Triggered 3 | . 3 . Indirectly . | . . . Trap Hack Attempts . | . . . Triggered . | . . . Disarmed . | . . . Reprogrammed . | . . . Reused . | . . . Traps Extracted . | . . . Installed . | . . . Triggered . | . . . Machines | -11 -10 -10 ---------- Run | Yrd Mat Min Machines Disabled . | . . . Max in Single Turn . | . . . Machines Repaired . | . . . Machines Dismantled . | . . . Machines Sabotaged . | . . . Overloaded Fab Kills . | . . . Hacking | -11 -10 -10 --------- Run | Yrd Mat Min Machines Accessed 2 | . 2 . Terminals 2 | . 2 . Fabricators . | . . . Repair Stations . | . . . Recycling Units . | . . . Scanalyzers . | . . . Garrison Access . | . . . Total Hacks 4 | . 4 . Successful 2 | . 2 . Failed 2 | . 2 . Catastrophic . | . . . Database Lockouts . | . . . Manual 2 | . 2 . Terminals 4 | . 4 . Fabricators . | . . . Repair Stations . | . . . Recycling Units . | . . . Scanalyzers . | . . . Garrison Access . | . . . Terminal Hacks 2 | . 2 . Dispatch Records 1 | . 1 . Hauler Manifests 1 | . 1 . Fabricator Hacks . | . . . Repair Station Hacks . | . . . Recycling Unit Hacks . | . . . Scanalyzer . | . . . Garrison Access Hacks . | . . . Unauthorized Hacks . | . . . Terminals . | . . . Fabricators . | . . . Repair Stations . | . . . Recycling Units . | . . . Scanalyzers . | . . . Garrison Access . | . . . Data Cores Recovered . | . . . Used . | . . . Hacking Detections 2 | . 2 . Full Trace Events . | . . . Feedback Events . | . . . Feedback Blocked . | . . . Robot Schematics Acquired . | . . . Robots Built . | . . . Authchips . | . . . Time . | . . . Total Robot Build Rating . | . . . Part Schematics Acquired . | . . . Parts Built . | . . . Authchips . | . . . Time . | . . . Total Part Build Rating . | . . . Part Studies Acquired . | . . . Parts Repaired . | . . . Time . | . . . Parts Recycled . | . . . Recycled Matter . | . . . Retrieved Matter . | . . . Retrieved Components . | . . . Parts Scanalyzed . | . . . Part Schematics Acquired . | . . . Parts Damaged . | . . . Bothacking | -11 -10 -10 ------------ Run | Yrd Mat Min Used RIF Installer . | . . . Robots Hacked . | . . . Non-combat . | . . . Combat . | . . . Robot Hacks Applied . | . . . Relay Couplers Released . | . . . Fabnet Peak Effective % . | . . . Robots Rewired . | . . . Allies Hacked . | . . . Hacks Repelled . | . . . Allies | -11 -10 -10 -------- Run | Yrd Mat Min Total Allies . | . . . Largest Group . | . . . Highest-Rated Group . | . . . Highest-Rated Ally . | . . . Total Orders . | . . . Ally Attacks . | . . . Total Damage . | . . . Kills . | . . . Allies Corrupted . | . . . Allies Melted . | . . . Intel | -11 -10 -10 ------- Run | Yrd Mat Min Active Infowar (turns) 1067 | 53 886 128 Seismic 1067 | 53 886 128 Robot Analysis Total . | . . . Derelict Logs Recovered . | . . . Drone Launches . | . . . Drone Recoveries . | . . . Exploration | -11 -10 -10 ------------- Run | Yrd Mat Min Turns Passed 1150 | 136 886 128 Spaces Moved 628 | 61 474 93 Core 3 | 3 . . Treads 258 | 58 200 . Legs 367 | . 274 93 Wheels . | . . . Hover . | . . . Flight . | . . . Fastest Speed 50 | 50 120 120 Average Speed 136 | 155 137 120 Slowest Speed 190 | 160 190 120 Overloaded Moves . | . . . Propulsion Burnouts . | . . . Robots Hopped . | . . . Potential Cave-ins . | . . . Cave-ins Triggered . | . . . Exploration Rate (%) 38 | 4 91 20 Regions Visited 2 Branch Regions 1 Pre-discovered Areas . | . . . Known Exits Taken . | . . . Unknown Exits Taken 2 | 1 1 . Scrap Searched . | . . . Spaces Dug . | . . . Terrain Destroyed . | . . . Melee . | . . . Projectile . | . . . AOE . | . . . Terrain Rammed . | . . . Walls Destroyed . | . . . Machines Disabled . | . . . Actions | -11 -10 -10 --------- Run | Yrd Mat Min Total 785 | 81 597 107 Wait 31 | . 26 5 Move 626 | 60 473 93 Hop . | . . . Pick Up 12 | 4 8 . Fast Attach 10 | 7 3 . Attach 4 | . 3 1 Detach 1 | . 1 . Swap 7 | . 5 2 Drop 9 | . 7 2 Fire 85 | 10 71 4 Melee . | . . . Ram . | . . . Kick . | . . . Crush . | . . . Escape Stasis . | . . . Rewire . | . . . Trap . | . . . Miscellaneous . | . . . Route ------- -11/Scrapyard -10/Materials (discovered 5 exits: [*Mat x3] / [*Min x2]) -10/Mines History --------- Turn | Location | Event 8 | -11/Scrapyard | Discovered new exit (range 15) 137 | -11/Scrapyard | Entered Materials 280 | -10/Materials | Discovered new exit (range 7) 302 | -10/Materials | Build established: Mutant 504 | -10/Materials | Discovered new exit (range 13) 505 | -10/Materials | Discovered new exit (range 11) 712 | -10/Materials | Discovered new exit (range 11) 789 | -10/Materials | Discovered new exit (range 7) 816 | -10/Materials | Core integrity fell below 50% 1023 | -10/Materials | Entered Mines 1024 | -10/Mines | Assembled infested the area 1029 | -10/Mines | Assisted by a Guerilla fighting off Assembled 1146 | -10/Mines | Core integrity fell below 20% 1151 | -10/Mines | Destroyed by D-53 Grenadier with Mini Grenade Launcher Last Messages --------------- 01036_ G-47 Trooper suffers critical hit (Destroy). 01036_ G-47 Trooper destroyed. 01036_ HV Slug penetrates Wall. 01036_ Dropped Lgt. Ion Engine. 01041_ Acquired 3 matter. 01042_ K-01 Serf collects debris. 01045_ Dropped Lgt. Ion Engine. 01046_ Acquired 4 matter. 01057_ K-01 Serf collects debris. 01087_ K-01 Serf cleans the Seismic Survey Station. 01121_ LH-PB5(h) destroyed. 01143_ Seismic Survey Station disabled. 01145_ Aluminum Leg destroyed. 01147_ Lgt. Assault Rifle destroyed. 01151_ The unstable cave ceiling collapses. 01151_ Lgt. Nuclear Core destroyed. 01151_ Assault Rifle destroyed. 01151_ Aluminum Leg destroyed. Map ----- +----------------------------------------------------+ | ?????????????????????????####?????## #?????????? | | ???????????????????????????????????## ##????????? | | ????????????????????????????????????# #????????? | | ???????????????????????????????????## ##???????? | | ???????????????????????????????????# #???##### | | ???????????????????????????????????# ### | | ???????????????????????????????????## | | ????????????????????????????????????##### ## | | ????????????????????????????????????????# #??? """ | | ????????????????????????????????????????# #?????"" | | ????????????????????????????????????????# #??????? | | ????????????????????????????????????????# #??????? | | ???????????????????????????????????###### #??????? | | ???????????????????????????????????# #??????? | | ??????????#????????????????????????# ######??????? | | ?????????# ????????????????????????# #???????????? | | ????????? ???????# ############# #???????????? | | ????????? ????????# #???????????? | | ???####### ?????????# ###### ########???????????? | | ??## ?????????????????# #??????????????????? | | ??? ! #??????????####### #####??????????????? | | ???? =%] #?????????## # # #??????????????? | | ?????# * #????????## ### #??????????????? | | ?????? #????????# #??????????????????? | | ???????# ##??????## #??????????????????? | | ??????## ##?????# d @ #??????????????????? | | ?????## $ ##????#d #??????????????????? | | ?????# ###### #??????????????????? | | ?????# " #??????????????????? | | ????# ##### #??????????????????? | | ????# ### ##???# #??????????????????? | | ????## #??####????############??????????????????? | | ?????##??????????????????????????????????????????? | | ?????????????????????????????????????????????????? | | | | | | | | | | | | | | | | | | | | | | | | | | | | | | | | | +----------------------------------------------------+ Best States ------------- Heat Dissipation 25 Energy Generation 14 Energy Capacity 250 Matter Stores 300 Matter Capacity 300 Sight Range 16 Terrain Scan Density 10 Evasion (%) 55 Recoil Reduction 2 Item Schematics ----------------- None Robot Schematics ------------------ None Fabricated ------------ Nothing Repaired ---------- Nothing Studied --------- None Alien Tech Used ----------------- None Achievements -------------- None Challenges ------------ None Game ------ Seed StasisImpulseProjector Manual? 0 Play Time 00:12:01 Cumulative 94.0 hours Start 2025.12.06 @ 20:47:31 End 2025.12.18 @ 21:43:21 Sessions 2 Manual Loads 0 Difficulty Rogue Special Mode None Game No. 123 Rogue 123 Adventurer 0 Explorer 0 Win Type - Total 1 Types 1/0/0/0/0/0/0/0/0/0 Lore% 49 Gallery% 45 Achievement% 26 Wizard Run 0 Options --------- Layout 2 ASCII 0 Keyboard 1 Movement Numpad Keybinds 0 Fullscreen 1 Font 32/Tamsyn Map View 50x44 Zoom Use 0% Tactical HUD 1 Map Filters NONE Filters NONE Steam 1 RUN: 7e82a46c-fb57-46d5-b82e-6144da5f2db5